bitfinex-derivatives/quotes_BNBF0:USTF0_20250511
["timestamp","ask_amount","ask_price","bid_price","bid_amount"]
[1746938631829,0.24465888,666.25,664.93,0.30078354]
[1746938632130,0.24465888,666.26,664.93,0.30078354]
[1746938632925,0.24465888,666.25,664.93,0.30078354]
[1746938633132,0.26145166,666.27,664.93,0.30078354]
[1746938633530,0.24468861,666.26,664.93,0.30078354]
[1746938633932,0.24468861,666.25,664.93,0.30078354]
[1746938634333,0.24468861,666.24,664.93,0.30078354]
[1746938634525,0.24468861,666.23,664.93,0.30078354]
[1746938634933,0.24468861,666.22,664.93,0.30078354]
[1746938635232,0.24468861,666.21,664.93,0.30078354]
[1746938635635,0.24468861,666.2,664.93,0.30078354]
[1746938636032,0.24468861,666.26,664.93,0.30078354]
[1746938637433,0.2615273,666.25,664.93,0.30078354]
[1746938637734,0.24468861,666.24,664.93,0.30078354]
[1746938638035,0.24468861,666.23,664.93,0.30078354]
[1746938638435,0.24468861,666.22,664.93,0.30078354]
[1746938638734,0.24468861,666.21,664.93,0.30078354]
[1746938639233,0.24468861,666.2,664.93,0.30078354]
[1746938639435,0.24468861,666.19,664.93,0.30078354]
[1746938639730,0.24468861,666.18,664.93,0.30078354]
[1746938640234,0.30007501,666.5,664.93,0.30078354]
[1746938640436,1.94388738,666.11,664.93,0.30078354]
[1746938640735,0.24474988,666.1,664.93,0.30078354]
[1746938641135,0.24474988,666.09,664.93,0.30078354]
[1746938641435,0.50627325,666.09,664.93,0.30078354]
[1746938641636,0.24474988,666.08,664.93,0.30078354]
[1746938641930,0.24474988,666.07,664.93,0.30078354]
[1746938642229,0.24474988,666.06,664.93,0.30078354]
[1746938642634,0.24474988,666.05,664.93,0.30078354]
[1746938643038,0.24474988,666.04,664.93,0.30078354]
[1746938643338,0.5062595,666.04,664.93,0.30078354]
[1746938643631,0.24474988,666.03,664.93,0.30078354]
[1746938644237,0.24474988,666.02,664.93,0.30078354]
[1746938644940,0.24474988,666.01,664.93,0.30078354]
[1746938645238,0.24474988,666.0,664.93,0.30078354]
[1746938645638,0.24474988,666.03,664.93,0.30078354]
[1746938645942,0.24474988,666.02,664.93,0.30078354]
[1746938646343,0.24474988,666.01,664.93,0.30078354]
[1746938646537,0.50626048,666.01,664.93,0.30078354]
[1746938646740,0.2615106,666.01,664.93,0.30078354]
[1746938647041,0.24474988,666.0,664.93,0.30078354]
[1746938649239,0.24474988,665.99,664.93,0.30078354]
[1746938649440,0.50625851,665.99,664.93,0.30078354]
[1746938649745,0.26150863,665.99,664.93,0.30078354]
[1746938650244,0.24474988,665.98,664.93,0.30078354]
[1746938652446,0.24474988,665.97,664.93,0.30078354]
[1746938652945,0.24474988,665.96,664.93,0.30078354]
[1746938653148,0.24474988,665.95,664.93,0.30078354]
[1746938653646,0.24474988,665.94,664.93,0.30078354]
[1746938654347,0.24474988,665.93,664.93,0.30078354]
[1746938654744,0.24474988,665.92,664.93,0.30078354]
[1746938655142,0.24474988,665.91,664.93,0.30078354]
[1746938655448,0.24474988,665.9,664.93,0.67578354]
[1746938655849,0.24474988,665.89,664.93,0.67578354]
[1746938656244,0.24474988,665.9,664.93,0.67578354]
[1746938658444,0.2615332,665.89,664.93,0.67578354]
[1746938658850,0.24474988,665.88,664.93,0.67578354]
[1746938661351,0.26149291,665.87,664.93,0.67578354]
[1746938661847,0.24474988,665.86,664.93,0.67578354]
[1746938664455,0.26149291,665.85,664.93,0.67578354]
[1746938664856,0.24474988,665.84,664.93,0.67578354]
[1746938666655,0.26149291,665.85,664.93,0.67578354]
[1746938667051,0.24471757,665.84,664.93,0.67578354]
[1746938667355,0.2614939,665.84,664.93,0.67578354]
[1746938667654,0.24471757,665.83,664.93,0.67578354]
[1746938669557,0.2614939,665.84,664.93,0.67578354]
[1746938669958,0.24471139,665.83,664.93,0.67578354]
[1746938673062,0.24471139,666.22,664.93,0.67578354]
[1746938673255,0.26148604,665.93,664.93,0.67578354]
[1746938673459,0.24471139,665.92,664.93,0.67578354]
[1746938673962,0.24471139,666.22,664.93,0.67578354]
[1746938674261,1.94388738,666.25,664.93,0.67578354]
[1746938674461,0.26148407,666.21,664.93,0.67578354]
[1746938675565,0.24468534,666.2,664.93,0.67578354]
[1746938676766,0.24468534,666.44,664.93,0.67578354]
[1746938677165,0.24468534,666.43,664.93,0.67578354]
[1746938677365,0.50615173,666.43,664.93,0.67578354]
[1746938677765,0.24468534,666.42,664.93,0.67578354]
[1746938678066,0.24468534,666.41,664.93,0.67578354]
[1746938678661,0.24468534,666.4,664.93,0.67578354]
[1746938678861,0.24468534,666.4,664.94,1.15128149]
[1746938679066,0.24468534,666.39,664.95,0.30077449]
[1746938679466,0.24468534,666.38,664.95,0.30077449]
[1746938679866,0.24468534,666.37,664.95,0.30077449]
[1746938680166,0.24468534,666.36,664.95,0.30077449]
[1746938680772,0.24468534,666.35,664.95,0.30077449]
[1746938681172,0.24468534,666.34,664.95,0.30077449]
[1746938681372,1.94388738,666.29,664.95,0.30077449]
[1746938681868,0.24468534,666.28,664.95,0.30077449]
[1746938682274,1.94388738,666.29,664.95,0.30077449]
[1746938682567,0.26147425,666.27,664.95,0.30077449]
[1746938682873,0.24467265,666.26,664.95,0.30077449]
[1746938683668,0.24467265,666.25,664.96,1.15041175]
[1746938684070,0.24467265,666.24,664.96,1.15041175]
[1746938684271,0.24467265,666.24,664.98,0.30076092]
[1746938684469,0.24467265,666.26,664.98,0.30076092]
[1746938685374,0.24467265,666.45,664.98,0.30076092]
[1746938685771,1.94388738,666.33,664.98,0.30076092]
[1746938685976,0.24467265,666.32,664.98,0.30076092]
[1746938686278,0.2615971,666.31,664.98,0.30076092]
[1746938686771,0.24467265,666.3,664.98,0.30076092]
[1746938688375,0.26145264,666.29,664.98,0.30076092]
[1746938688678,0.24467265,666.28,664.99,0.38]
[1746938688979,0.24467265,666.28,665.01,0.30074735]
[1746938690578,0.24467265,666.27,665.01,0.30074735]
[1746938690873,0.24467265,666.28,665.01,0.30074735]
[1746938691281,0.26143103,666.27,665.01,0.30074735]
[1746938691676,0.24467265,666.26,665.01,0.30074735]
[1746938693576,0.24467265,666.25,665.01,0.30074735]
[1746938693982,0.24467265,666.24,665.01,0.30074735]
[1746938694383,0.24467265,666.23,665.01,0.30074735]
[1746938694782,0.24467265,666.22,665.01,0.30074735]
[1746938695183,0.24467265,666.21,665.01,0.30074735]
[1746938695483,0.24467265,666.2,665.01,0.30074735]
[1746938695983,0.24467265,666.19,665.01,0.30074735]
[1746938696279,0.24467265,666.18,665.01,0.30074735]
[1746938696679,0.24467265,666.26,665.01,0.30074735]
[1746938697083,0.24467265,666.25,665.01,0.30074735]
[1746938697484,0.24467265,666.24,665.01,0.30074735]
[1746938697780,0.24467265,666.23,665.01,0.30074735]
[1746938698080,0.24467265,666.22,665.01,0.30074735]
[1746938698586,0.24467265,666.21,665.01,0.30074735]
[1746938698884,0.24467265,666.2,665.01,0.30074735]
[1746938699086,0.24467265,666.19,665.01,0.30074735]
[1746938699386,0.24467265,666.18,665.01,0.30074735]
[1746938699788,0.24467265,666.17,665.01,0.30074735]
[1746938700089,0.24467265,666.21,665.01,0.30074735]
[1746938700391,0.26144969,666.16,665.01,0.30074735]
[1746938700888,0.24467265,666.15,665.01,0.30074735]
[1746938702391,0.24467265,666.15,665.02,0.342]
[1746938702590,0.24467265,666.15,665.03,0.30073831]
[1746938703294,0.261433,666.14,665.03,0.30073831]
[1746938704094,0.24467265,666.13,665.03,0.30073831]
[1746938706303,0.24467265,666.49,665.03,0.30073831]
[1746938706700,0.24467265,666.48,665.03,0.30073831]
[1746938706896,0.24467265,666.47,665.03,0.30073831]
[1746938707301,0.26144085,666.46,665.03,0.30073831]
[1746938707501,0.5061135,666.46,665.03,0.30073831]
[1746938707703,1.94388738,666.33,665.03,0.30073831]
[1746938708098,0.24467265,666.32,665.03,0.30073831]
[1746938708403,0.24467265,666.31,665.03,0.30073831]
[1746938708799,0.24467265,666.3,665.03,0.30073831]
[1746938709199,0.24467265,666.29,665.03,0.30073831]
[1746938709400,0.24467265,666.28,665.03,0.30073831]
[1746938710914,0.24467265,666.27,665.03,0.30073831]
[1746938711315,0.24467265,666.26,665.03,0.30073831]
[1746938711614,0.24467265,666.25,665.03,0.30073831]
[1746938712013,0.24467265,666.24,665.03,0.30073831]
[1746938712414,0.24467265,666.23,665.03,0.30073831]
[1746938712614,0.50612529,666.23,665.03,0.30073831]
[1746938712815,0.24467265,666.22,665.03,0.30073831]
[1746938715318,0.26145166,666.21,665.03,0.30073831]
[1746938715617,0.24467265,666.2,665.03,0.30073831]
[1746938716819,0.24467265,666.19,665.03,0.30073831]
[1746938717120,0.24467265,666.18,665.03,0.30073831]
[1746938717418,0.24467265,666.17,665.03,0.30073831]
[1746938717919,0.24467265,666.16,665.03,0.30073831]
[1746938718319,0.24467265,666.15,665.03,0.30073831]
[1746938718619,0.24467265,666.14,665.03,0.30073831]
[1746938719114,0.24467265,666.13,665.03,0.30073831]
[1746938719522,0.24467265,666.12,665.03,0.30073831]
[1746938719820,0.24467265,666.11,665.03,0.30073831]
[1746938720321,1.94388738,666.08,665.03,0.30073831]
[1746938720519,0.24467265,666.07,665.03,0.30073831]
[1746938722621,1.94388738,666.06,665.03,0.30073831]
[1746938722818,0.24467265,666.05,665.03,0.30073831]
[1746938723223,0.24467265,666.05,665.04,1.14930479]
[1746938723417,0.24467265,666.05,665.06,0.30072474]
[1746938724323,0.24467265,666.04,665.06,0.30072474]
[1746938724623,0.24467265,666.08,665.06,0.30072474]
[1746938725124,0.24467265,666.07,665.06,0.30072474]
[1746938725522,0.24467265,666.06,665.06,0.30072474]
[1746938726220,0.24467265,666.08,665.06,0.30072474]
[1746938726624,0.24467265,666.07,665.06,0.30072474]
[1746938726820,1.94388738,666.04,665.06,0.30072474]
[1746938727320,0.24467265,666.03,665.06,0.30072474]
[1746938727520,0.24467265,666.03,665.07,1.14989988]
[1746938727723,0.24467265,666.03,665.09,0.30071118]
[1746938729423,0.24467265,666.03,665.1,1.14990189]
[1746938729623,0.24467265,666.09,665.1,1.14990189]
[1746938729820,0.24467265,666.09,665.09,0.30071118]
[1746938730525,0.24467265,666.49,665.09,0.30071118]
[1746938730823,0.24467265,666.49,665.1,1.15018062]
[1746938731019,0.24467265,666.48,665.1,1.15018062]
[1746938731225,0.24467265,666.48,665.11,0.401]
[1746938731426,0.24467265,666.47,665.12,0.30069761]
[1746938731825,0.24467265,666.46,665.12,0.30069761]
[1746938732225,0.24467265,666.45,665.12,0.30069761]
[1746938732526,0.24467265,666.44,665.12,0.30069761]
[1746938732826,0.24467265,666.47,665.12,0.30069761]
[1746938733327,0.26137507,666.46,665.13,1.15039549]
[1746938733525,0.50604772,666.46,665.15,0.30068405]
[1746938733721,0.50604772,666.46,665.16,1.15039549]
[1746938733924,0.50604772,666.46,665.18,0.30067049]
[1746938734123,0.24467265,666.45,665.18,0.30067049]
[1746938734732,0.24467265,666.45,665.19,1.15039549]
[1746938734926,0.24467265,666.45,665.21,0.30065693]
[1746938735126,0.24467265,666.45,665.22,1.15039549]
[1746938735330,0.24467265,666.45,665.24,0.30064337]
[1746938735626,0.24467265,666.45,665.25,1.15039549]
[1746938735828,0.24467265,666.45,665.27,0.30062981]
[1746938736431,0.26133876,666.44,665.27,0.30062981]
[1746938736831,0.24467265,666.43,665.27,0.30062981]
[1746938739132,0.24467265,666.42,665.27,0.30062981]
[1746938739330,0.24467265,666.42,665.28,1.14937683]
[1746938739530,0.24467265,666.43,665.3,0.30061626]
[1746938742535,0.24467265,666.71,665.3,0.30061626]
[1746938742830,0.24467265,666.7,665.3,0.30061626]
[1746938743234,0.24467265,666.69,665.3,0.30061626]
[1746938743434,0.50600062,666.69,665.3,0.30061626]
[1746938743832,0.24467265,666.68,665.3,0.30061626]
[1746938744338,0.24467265,666.67,665.3,0.30061626]
[1746938744639,0.24467265,666.66,665.3,0.30061626]
[1746938744939,0.24467265,666.65,665.3,0.30061626]
[1746938745332,0.24467265,666.64,665.3,0.30061626]
[1746938745739,0.24467265,666.63,665.3,0.30061626]
[1746938746041,0.24467265,666.62,665.3,0.30061626]
[1746938746341,0.24467265,666.61,665.3,0.30061626]
[1746938746740,0.24467265,666.6,665.3,0.30061626]
[1746938747142,0.24467265,666.61,665.3,0.30061626]
[1746938748543,1.94388738,666.91,665.3,0.30061626]
[1746938748544,0.24467265,666.82,665.3,0.30061626]
[1746938748843,0.24467265,666.81,665.3,0.30061626]
[1746938749143,0.24467265,666.8,665.3,0.30061626]
[1746938749344,0.5060016,666.8,665.3,0.30061626]
[1746938749644,0.24467265,666.79,665.3,0.30061626]
[1746938749846,0.24467265,666.78,665.3,0.30061626]
[1746938750339,0.24467265,666.77,665.3,0.30061626]
[1746938751045,0.24467265,666.76,665.3,0.30061626]
[1746938751345,0.24467265,666.75,665.3,0.30061626]
[1746938751546,0.24467265,666.74,665.3,0.30061626]
[1746938751946,0.24467265,666.73,665.3,0.30061626]
[1746938752147,0.24467265,666.72,665.3,0.30061626]
[1746938752542,0.24467265,666.71,665.3,0.30061626]
[1746938752948,0.24467265,666.7,665.3,0.30061626]
[1746938753247,0.24467265,666.69,665.3,0.30061626]
[1746938754348,0.24467265,666.68,665.3,0.30061626]
[1746938754544,1.94388738,666.94,665.3,0.30061626]
[1746938754545,0.24467265,666.67,665.3,0.30061626]
[1746938754843,0.24467265,666.93,665.3,0.30061626]
[1746938755049,0.29988604,666.92,665.3,0.30061626]
[1746938755345,0.24467265,666.91,665.3,0.30061626]
[1746938755551,0.29989503,666.9,665.3,0.30061626]
[1746938755852,0.54456768,666.9,665.3,0.30061626]
[1746938756048,0.24467265,666.89,665.3,0.30061626]
[1746938756248,0.29990403,666.88,665.3,0.30061626]
[1746938756446,0.54457668,666.88,665.3,0.30061626]
[1746938756651,0.24467265,666.87,665.3,0.30061626]
[1746938756948,0.24467265,666.86,665.3,0.30061626]
[1746938757649,0.24467265,666.85,665.3,0.30061626]
[1746938757953,0.24467265,666.84,665.3,0.30061626]
[1746938758354,0.24467265,666.83,665.3,0.30061626]
[1746938758756,0.24467265,666.82,665.3,0.30061626]
[1746938759154,0.24467265,666.81,665.3,0.30061626]
[1746938759354,0.24467265,666.8,665.3,0.30061626]
[1746938759554,1.94388738,666.75,665.3,0.30061626]
[1746938759756,0.24467265,666.74,665.3,0.30061626]
[1746938760055,1.94388738,666.75,665.3,0.30061626]
[1746938760056,0.24467265,666.73,665.3,0.30061626]
[1746938760452,0.24467265,666.72,665.3,0.30061626]
[1746938760655,0.24467265,666.71,665.3,0.30061626]
[1746938761051,0.24467265,666.7,665.3,0.30061626]
[1746938761361,0.50618915,666.7,665.3,0.30061626]
[1746938761559,0.24467265,666.69,665.3,0.30061626]
[1746938761861,1.94388738,666.64,665.3,0.30061626]
[1746938762360,0.24467265,666.63,665.31,0.368]
[1746938762759,0.24467265,666.62,665.31,0.368]
[1746938763060,0.24467265,666.61,665.31,0.368]
[1746938763460,0.24467265,666.6,665.31,0.368]
[1746938763759,0.24467265,666.59,665.31,0.368]
[1746938764057,1.94388738,666.56,665.31,0.368]
[1746938764560,0.24467265,666.55,665.31,0.368]
[1746938764961,0.24467265,666.54,665.31,0.368]
[1746938765163,0.24467265,666.54,665.32,0.30060722]
[1746938765362,0.24467265,666.53,665.32,0.30060722]
[1746938765563,0.24467265,666.52,665.32,0.30060722]
[1746938765858,0.24467265,666.51,665.32,0.30060722]
[1746938766264,0.24467265,666.5,665.32,0.30060722]
[1746938766663,0.24467265,666.49,665.32,0.30060722]
[1746938767063,0.24467265,666.48,665.32,0.30060722]
[1746938767463,0.24467265,666.47,665.32,0.30060722]
[1746938767762,0.24467265,666.46,665.32,0.30060722]
[1746938768165,0.24467265,666.45,665.32,0.30060722]
[1746938768463,1.94388738,666.53,665.32,0.30060722]
[1746938768760,0.24456771,666.52,665.32,0.30060722]
[1746938769165,0.24456771,666.51,665.32,0.30060722]
[1746938769464,0.24456771,666.5,665.32,0.30060722]
[1746938769861,0.24456771,666.49,665.32,0.30060722]
[1746938770364,0.24456771,666.48,665.32,0.30060722]
[1746938770664,0.24456771,666.47,665.32,0.30060722]
[1746938771070,0.24456771,666.46,665.32,0.30060722]
[1746938771271,1.94388738,666.36,665.32,0.30060722]
[1746938772071,0.24456865,666.35,665.32,0.30060722]
[1746938772372,0.24456865,666.34,665.32,0.30060722]
[1746938772875,0.24456865,666.33,665.32,0.30060722]
[1746938773271,0.24456865,666.32,665.32,0.30060722]
[1746938773575,0.24456865,666.31,665.32,0.30060722]
[1746938773875,0.24456865,666.3,665.32,0.30060722]
[1746938774377,0.24456865,666.29,665.32,0.30060722]
[1746938774676,0.24456865,666.28,665.32,0.30060722]
[1746938774976,0.24456865,666.27,665.32,0.30060722]
[1746938775378,0.24456865,666.33,665.32,0.30060722]
[1746938775673,0.26137507,666.26,665.32,0.30060722]
[1746938776192,0.24456865,666.25,665.32,0.30060722]
[1746938777180,0.26137507,666.26,665.32,0.30060722]
[1746938777477,0.24456027,666.25,665.32,0.30060722]
[1746938781775,0.26133974,666.24,665.32,0.30060722]
[1746938782379,0.24456027,666.23,665.32,0.30060722]
[1746938786980,0.24456027,666.23,665.33,0.333]
[1746938787377,0.24456027,666.23,665.34,0.30059819]
[1746938787776,0.29990403,666.88,665.34,0.30059819]
[1746938787981,1.94388738,666.73,665.34,0.30059819]
[1746938788374,0.24454999,666.72,665.34,0.30059819]
[1746938788682,0.24454999,666.71,665.34,0.30059819]
[1746938789082,0.24454999,666.7,665.34,0.30059819]
[1746938789384,0.24454999,666.69,665.34,0.30059819]
[1746938789783,0.24454999,666.68,665.34,0.30059819]
[1746938789984,1.94388738,666.56,665.34,0.30059819]
[1746938790681,0.50588188,666.55,665.34,0.30059819]
[1746938790987,0.24454999,666.54,665.34,0.30059819]
[1746938793781,0.26131717,666.53,665.34,0.30059819]
[1746938794285,0.24451957,666.52,665.34,0.30059819]
[1746938796787,0.26131031,666.51,665.34,0.30059819]
[1746938797587,0.24450673,666.5,665.34,0.30059819]
[1746938802290,0.24450673,666.5,665.35,0.44]
[1746938802493,0.24450673,666.5,665.36,0.30058915]
[1746938803589,0.24450673,666.73,665.36,0.30058915]
[1746938803789,0.26133189,666.49,665.36,0.30058915]
[1746938803989,0.24450673,666.72,665.36,0.30058915]
[1746938804289,0.24450673,666.71,665.36,0.30058915]
[1746938804690,0.24450673,666.7,665.36,0.30058915]
[1746938805091,0.24450673,666.69,665.36,0.30058915]
[1746938805289,0.50583862,666.69,665.36,0.30058915]
[1746938805483,0.24450673,666.68,665.36,0.30058915]
[1746938805792,0.24450673,666.67,665.36,0.30058915]
[1746938806095,0.24450673,666.66,665.36,0.30058915]
[1746938806401,0.26133189,666.69,665.36,0.30058915]
[1746938806796,0.24455602,666.68,665.36,0.30058915]
[1746938807296,0.24455602,666.67,665.36,0.30058915]
[1746938807698,0.24455602,666.66,665.36,0.30058915]
[1746938808199,0.24455602,666.65,665.36,0.30058915]
[1746938808691,0.24455602,666.64,665.36,0.30058915]
[1746938808893,1.94388738,666.74,665.36,0.30058915]
[1746938809499,0.24456297,666.73,665.36,0.30058915]
[1746938809694,0.50590271,666.73,665.36,0.30058915]
[1746938809995,0.24456297,666.72,665.36,0.30058915]
[1746938810495,0.24456297,666.71,665.36,0.30058915]
[1746938811103,0.24456297,666.7,665.36,0.30058915]
[1746938811604,0.24456297,666.69,665.36,0.30058915]
[1746938811800,0.26135642,666.69,665.36,0.30058915]
[1746938812405,1.94388738,666.34,665.36,0.30058915]
[1746938812800,0.24459151,666.33,665.36,0.30058915]
[1746938813102,0.24459151,666.32,665.36,0.30058915]
[1746938813606,0.24459151,666.31,665.36,0.30058915]
[1746938814004,0.24459151,666.3,665.36,0.30058915]
[1746938814303,1.94388738,666.29,665.36,0.30058915]
[1746938814706,2.18847889,666.29,665.36,0.30058915]
[1746938815007,0.24459151,666.28,665.36,0.30058915]
[1746938815403,0.24459151,666.27,665.36,0.30058915]
[1746938815707,0.24459151,666.26,665.36,0.30058915]
[1746938816204,0.24459151,666.25,665.36,0.30058915]
[1746938816508,0.24459151,666.24,665.36,0.30058915]
[1746938816908,0.24459151,666.23,665.36,0.30058915]
[1746938817209,0.24459151,666.32,665.36,0.30058915]
[1746938817510,0.24459151,666.31,665.36,0.30058915]
[1746938817811,0.5059872,666.31,665.36,0.30058915]
[1746938818011,0.24459151,666.3,665.36,0.30058915]
[1746938818310,0.24459151,666.29,665.36,0.30058915]
[1746938818609,0.24459151,666.28,665.36,0.30058915]
[1746938819009,0.24459151,666.27,665.36,0.30058915]
[1746938819204,0.24459151,666.26,665.36,0.30058915]
[1746938819911,0.24459151,666.25,665.36,0.30058915]
[1746938820207,0.24459151,666.3,665.36,0.30058915]
[1746938820812,0.24459151,666.29,665.36,0.30058915]
[1746938821414,0.24459151,666.28,665.36,0.30058915]
[1746938821710,0.26154008,666.28,665.36,0.30058915]
[1746938821909,0.26154008,666.28,665.37,0.384]
[1746938822112,0.24459151,666.27,665.38,0.30058011]
[1746938824117,0.24459151,666.62,665.38,0.30058011]
[1746938824517,0.24459151,666.61,665.38,0.30058011]
[1746938824714,0.5059499,666.61,665.38,0.30058011]
[1746938824917,0.24459151,666.6,665.38,0.30058011]
[1746938825216,0.24459151,666.59,665.38,0.30058011]
[1746938825416,0.24459151,666.58,665.38,0.30058011]
[1746938825918,0.24459151,666.57,665.38,0.30058011]
[1746938826118,0.24459151,666.56,665.38,0.30058011]
[1746938826718,0.24459151,666.55,665.38,0.30058011]
[1746938827318,0.24459151,666.54,665.38,0.30058011]
[1746938827613,0.24459151,666.53,665.38,0.30058011]
[1746938828014,0.24459151,666.52,665.38,0.30058011]
[1746938828418,0.24459151,666.51,665.38,0.30058011]
[1746938828918,0.24459151,666.5,665.38,0.30058011]
[1746938829214,0.24459151,666.49,665.38,0.30058011]
[1746938829618,0.24459151,666.48,665.38,0.30058011]
[1746938829914,0.24459151,666.47,665.38,0.30058011]
[1746938830319,0.24459151,666.46,665.38,0.30058011]
[1746938830818,0.24459151,666.45,665.38,0.30058011]
[1746938831219,0.24459151,666.44,665.38,0.30058011]
[1746938831618,0.24459151,666.43,665.38,0.30058011]
[1746938832019,0.24459151,666.42,665.38,0.30058011]
[1746938832415,0.24459151,666.41,665.38,0.30058011]
[1746938832619,0.24459151,666.4,665.38,0.30058011]
[1746938833019,0.24459151,666.39,665.38,0.30058011]
[1746938833419,0.24459151,666.38,665.38,0.30058011]
[1746938833716,0.24459151,666.37,665.38,0.30058011]
[1746938833921,1.94388738,666.3,665.38,0.30058011]
[1746938834420,0.24459151,666.29,665.38,0.30058011]
[1746938835223,1.94388738,666.26,665.38,0.30058011]
[1746938835422,0.24459151,666.25,665.38,0.30058011]
[1746938837219,0.24459151,666.44,665.38,0.30058011]
[1746938837724,0.24459151,666.43,665.38,0.30058011]
[1746938838019,0.50595775,666.43,665.38,0.30058011]
[1746938838219,0.24459151,666.42,665.38,0.30058011]
[1746938838420,0.24459151,666.41,665.38,0.30058011]
[1746938838826,0.24459151,666.4,665.38,0.30058011]
[1746938839622,0.24459151,666.39,665.38,0.30058011]
[1746938839826,1.94388738,666.38,665.38,0.30058011]
[1746938840222,0.24459151,666.37,665.38,0.30058011]
[1746938841630,1.94388738,666.38,665.38,0.30058011]
[1746938841928,0.26137311,666.36,665.38,0.30058011]
[1746938842229,0.244572,666.35,665.38,0.30058011]
[1746938844727,0.244572,666.54,665.38,0.30058011]
[1746938844933,0.26134465,666.34,665.38,0.30058011]
[1746938845129,0.244572,666.54,665.38,0.30058011]
[1746938845932,0.26133876,666.53,665.38,0.30058011]
[1746938846533,0.244572,666.52,665.38,0.30058011]
[1746938847635,0.261326,666.51,665.38,0.30058011]
[1746938848133,0.244572,666.5,665.38,0.30058011]
[1746938848434,0.244572,666.49,665.38,0.30058011]
[1746938848734,0.244572,666.5,665.38,0.30058011]
[1746938849535,0.244572,666.49,665.38,0.30058011]
[1746938850234,0.244572,666.5,665.38,0.30058011]
[1746938853740,0.244572,666.72,665.38,0.30058011]
[1746938854041,0.244572,666.72,665.39,0.338]
[1746938854239,0.244572,666.71,665.41,0.30056656]
[1746938854539,0.244572,666.7,665.41,0.30056656]
[1746938854840,0.50585778,666.7,665.41,0.30056656]
[1746938855034,0.244572,666.69,665.41,0.30056656]
[1746938855339,0.26128578,666.7,665.41,0.30056656]
[1746938855340,0.244572,666.68,665.41,0.30056656]
[1746938855540,0.244572,666.67,665.41,0.30056656]
[1746938855939,0.244572,666.66,665.41,0.30056656]
[1746938856239,0.244572,666.65,665.41,0.30056656]
[1746938856635,0.244572,666.64,665.41,0.30056656]
[1746938856936,0.244572,666.63,665.41,0.30056656]
[1746938857239,0.244572,666.62,665.41,0.30056656]
[1746938857639,0.244572,666.61,665.41,0.30056656]
[1746938857839,0.50584699,666.61,665.41,0.30056656]
[1746938858540,0.244572,666.6,665.41,0.30056656]
[1746938858837,0.244572,666.59,665.41,0.30056656]
[1746938859240,0.244572,666.58,665.41,0.30056656]
[1746938859742,0.244572,666.57,665.41,0.30056656]
[1746938860043,0.244572,666.56,665.41,0.30056656]
[1746938860343,0.244572,666.55,665.41,0.30056656]
[1746938860644,0.244572,666.76,665.41,0.30056656]
[1746938860843,0.26128186,666.54,665.41,0.30056656]
[1746938861144,0.244572,666.75,665.41,0.30056656]
[1746938861344,0.244572,666.53,665.41,0.30056656]
[1746938861740,0.244572,666.52,665.41,0.30056656]
[1746938861945,0.50585386,666.52,665.41,0.30056656]
[1746938862146,0.26128186,666.52,665.41,0.30056656]
[1746938862440,0.244572,666.51,665.41,0.30056656]
[1746938862839,0.244572,666.5,665.41,0.30056656]
[1746938863141,0.244572,666.76,665.41,0.30056656]
[1746938863639,0.5058617,666.75,665.41,0.30056656]
[1746938863839,0.244572,666.74,665.41,0.30056656]
[1746938864142,0.244572,666.73,665.41,0.30056656]
[1746938864648,0.244572,666.72,665.41,0.30056656]
[1746938864949,0.244572,666.71,665.41,0.30056656]
[1746938865449,0.244572,666.7,665.41,0.30056656]
[1746938865652,0.244572,666.69,665.41,0.30056656]
[1746938866055,0.244572,666.68,665.41,0.30056656]
[1746938866358,1.94388738,666.64,665.41,0.30056656]
[1746938866756,0.50588623,666.63,665.41,0.30056656]
[1746938867157,0.244572,666.62,665.41,0.30056656]
[1746938867654,0.244572,666.61,665.41,0.30056656]
[1746938867954,0.244572,666.6,665.41,0.30056656]
[1746938868258,0.244572,666.59,665.41,0.30056656]
[1746938868654,0.244572,666.58,665.41,0.30056656]
[1746938869061,0.244572,666.57,665.41,0.30056656]
[1746938869464,0.244572,666.56,665.41,0.30056656]
[1746938869763,0.244572,666.55,665.41,0.30056656]
[1746938870059,0.244572,666.54,665.41,0.30056656]
[1746938870360,0.244572,666.53,665.41,0.30056656]
[1746938870866,0.244572,666.52,665.41,0.30056656]
[1746938871164,0.244572,666.51,665.41,0.30056656]
[1746938871660,0.244572,666.5,665.41,0.30056656]
[1746938871862,0.244572,666.49,665.41,0.30056656]
[1746938872364,0.244572,666.48,665.41,0.30056656]
[1746938872664,0.244572,666.49,665.41,0.30056656]
[1746938873263,0.2613211,666.5,665.41,0.30056656]
[1746938873567,0.24450197,666.49,665.41,0.30056656]
[1746938874767,0.24450197,666.68,665.41,0.30056656]
[1746938875069,0.26146344,666.48,665.41,0.30056656]
[1746938875269,0.24450197,666.67,665.41,0.30056656]
[1746938875468,0.24450197,666.66,665.41,0.30056656]
[1746938875769,0.24450197,666.66,665.42,0.455]
[1746938875967,0.24450197,666.65,665.44,0.30055301]
[1746938876265,0.50595461,666.65,665.44,0.30055301]
[1746938876567,0.24450197,666.64,665.44,0.30055301]